[Event "Early-Titled-Tuesday-Blitz-January-23-2024"]
[Site "Chess.com"]
[Date "2024.01.23"]
[Round "6"]
[White "LeoLV10"]
[Black "ChessSwole"]
[Result "1-0"]
[WhiteElo "2447"]
[BlackElo "2614"]
[TimeControl "180+1"]
[EndTime "9:07:14 PST"]
[Termination "LeoLV10 won by resignation"]

1. e4 {[%clk 0:03:00.9]} 1... e5 {[%clk 0:02:58.9]} 2. Nf3 {[%clk 0:03:01.3]}
2... Nf6 {[%clk 0:02:59.1]} 3. Nxe5 {[%clk 0:02:55.7]} 3... d6 {[%clk
0:02:58.7]} 4. Nf3 {[%clk 0:02:54.1]} 4... Nxe4 {[%clk 0:02:57.5]} 5. Nc3 {[%clk
0:02:54.5]} 5... Nf6 {[%clk 0:02:57.8]} 6. d4 {[%clk 0:02:49.4]} 6... Be7 {[%clk
0:02:58]} 7. Bd3 {[%clk 0:02:47.5]} 7... O-O {[%clk 0:02:57.9]} 8. O-O {[%clk
0:02:48.2]} 8... c6 {[%clk 0:02:57.5]} 9. Re1 {[%clk 0:02:45.6]} 9... a5 {[%clk
0:02:57.3]} 10. a4 {[%clk 0:02:44.8]} 10... Na6 {[%clk 0:02:55.2]} 11. Ne4
{[%clk 0:02:38.2]} 11... Nb4 {[%clk 0:02:53.7]} 12. Nxf6+ {[%clk 0:02:35.3]}
12... Bxf6 {[%clk 0:02:53.8]} 13. Bf1 {[%clk 0:02:21.3]} 13... Bf5 {[%clk
0:02:52.8]} 14. Re2 {[%clk 0:02:20.5]} 14... Re8 {[%clk 0:02:51.1]} 15. c3
{[%clk 0:02:20.7]} 15... Nd5 {[%clk 0:02:42.5]} 16. h3 {[%clk 0:02:11.7]} 16...
Qd7 {[%clk 0:02:35.6]} 17. Bg5 {[%clk 0:02:01.3]} 17... Bxg5 {[%clk 0:02:28]}
18. Nxg5 {[%clk 0:02:02.2]} 18... h6 {[%clk 0:02:27]} 19. Nf3 {[%clk 0:02:00.6]}
19... Nf4 {[%clk 0:02:27.2]} 20. Rxe8+ {[%clk 0:01:56.7]} 20... Rxe8 {[%clk
0:02:28.1]} 21. Qd2 {[%clk 0:01:57.1]} 21... g5 {[%clk 0:02:19.9]} 22. Re1
{[%clk 0:01:55.9]} 22... Be4 {[%clk 0:02:18.2]} 23. Nh2 {[%clk 0:01:48.1]} 23...
Re6 {[%clk 0:02:09.5]} 24. g3 {[%clk 0:01:35.8]} 24... Nd5 {[%clk 0:01:55.6]}
25. Ng4 {[%clk 0:01:34.1]} 25... Kg7 {[%clk 0:01:50.1]} 26. c4 {[%clk
0:01:24.9]} 26... Nb4 {[%clk 0:01:25.2]} 27. d5 {[%clk 0:01:21]} 27... cxd5
{[%clk 0:01:24.9]} 28. Qd4+ {[%clk 0:01:18.2]} 28... Kg6 {[%clk 0:01:23]} 29.
cxd5 {[%clk 0:01:12.8]} 29... Bxd5 {[%clk 0:01:23.4]} 30. Bd3+ {[%clk
0:01:10.5]} 30... Nxd3 {[%clk 0:01:22.9]} 31. Qxd3+ {[%clk 0:01:09.7]} 31... f5
{[%clk 0:01:14.4]} 32. Ne3 {[%clk 0:00:34.4]} 32... Be4 {[%clk 0:01:11.2]} 33.
Qd4 {[%clk 0:00:30.9]} 33... Qg7 {[%clk 0:01:03.1]} 34. Qxg7+ {[%clk 0:00:24.7]}
34... Kxg7 {[%clk 0:01:02.8]} 35. f3 {[%clk 0:00:24.4]} 35... Bd3 {[%clk
0:00:58.2]} 36. Kf2 {[%clk 0:00:20.6]} 36... f4 {[%clk 0:00:53]} 37. gxf4 {[%clk
0:00:19.3]} 37... gxf4 {[%clk 0:00:53.7]} 38. Nd5 {[%clk 0:00:19.5]} 38... Rxe1
{[%clk 0:00:50]} 39. Kxe1 {[%clk 0:00:19.6]} 39... Bc2 {[%clk 0:00:49.4]} 40.
Nxf4 {[%clk 0:00:18.7]} 40... Bxa4 {[%clk 0:00:49.1]} 41. Kd2 {[%clk 0:00:17.8]}
41... Kf6 {[%clk 0:00:45.5]} 42. Ke3 {[%clk 0:00:18]} 42... Bc6 {[%clk
0:00:42.2]} 43. h4 {[%clk 0:00:16.8]} 43... Kf5 {[%clk 0:00:39.2]} 44. Ne2
{[%clk 0:00:15.3]} 44... Bd7 {[%clk 0:00:27.3]} 45. Nd4+ {[%clk 0:00:15.4]}
45... Kg6 {[%clk 0:00:27]} 46. Ke4 {[%clk 0:00:14.5]} 46... Kh5 {[%clk 0:00:26]}
47. Kd5 {[%clk 0:00:09.9]} 47... Kxh4 {[%clk 0:00:23.6]} 48. Kxd6 {[%clk
0:00:10.5]} 48... Be8 {[%clk 0:00:20.1]} 49. Ke7 {[%clk 0:00:06.6]} 49... Bh5
{[%clk 0:00:17.2]} 50. f4 {[%clk 0:00:06.8]} 50... Kg4 {[%clk 0:00:17.4]} 51. f5
{[%clk 0:00:07.7]} 51... Kf4 {[%clk 0:00:14.3]} 52. f6 {[%clk 0:00:07.5]} 52...
Ke4 {[%clk 0:00:13.9]} 53. Ne6 {[%clk 0:00:07.4]} 53... Kd5 {[%clk 0:00:12]} 54.
Ng7 {[%clk 0:00:04.7]} 54... Bg6 {[%clk 0:00:11.3]} 55. Ne6 {[%clk 0:00:03.8]}
55... Kc4 {[%clk 0:00:10.7]} 56. Nf4 {[%clk 0:00:03.9]} 56... Kb3 {[%clk
0:00:08.2]} 57. Nxg6 {[%clk 0:00:04.1]} 57... Kxb2 {[%clk 0:00:09.1]} 58. f7
{[%clk 0:00:04.5]} 58... b5 {[%clk 0:00:09.8]} 59. f8=Q {[%clk 0:00:05.4]} 59...
b4 {[%clk 0:00:10.4]} 60. Qf2+ {[%clk 0:00:05.9]} 60... Ka3 {[%clk 0:00:10.7]}
61. Qc5 {[%clk 0:00:05.6]} 61... a4 {[%clk 0:00:10.1]} 62. Ne5 {[%clk 0:00:06]}
62... Kb3 {[%clk 0:00:09.6]} 63. Nd3 {[%clk 0:00:06.5]} 63... a3 {[%clk
0:00:10.2]} 64. Qxb4+ {[%clk 0:00:06.7]} 64... Kc2 {[%clk 0:00:10.9]} 65. Qxa3
{[%clk 0:00:06.9]} 1-0

[Event "Early-Titled-Tuesday-Blitz-January-23-2024"]
[Site "Chess.com"]
[Date "2024.01.23"]
[Round "6"]
[White "Chessbard1972"]
[Black "Boundless_Strike"]
[Result "0-1"]
[WhiteElo "2441"]
[BlackElo "2618"]
[TimeControl "180+1"]
[EndTime "9:07:20 PST"]
[Termination "Boundless_Strike won on time"]

1. e4 {[%clk 0:03:00.9]} 1... d6 {[%clk 0:02:59.9]} 2. d4 {[%clk 0:03:00.3]}
2... e5 {[%clk 0:03:00.6]} 3. Nf3 {[%clk 0:02:54.7]} 3... Bg4 {[%clk 0:03:00.2]}
4. dxe5 {[%clk 0:02:54]} 4... Nc6 {[%clk 0:03:00.1]} 5. exd6 {[%clk 0:02:52.3]}
5... Bxd6 {[%clk 0:03:01]} 6. Be2 {[%clk 0:02:51.4]} 6... Qe7 {[%clk 0:03:00.7]}
7. Bg5 {[%clk 0:02:48.8]} 7... Nf6 {[%clk 0:02:57.8]} 8. Nc3 {[%clk 0:02:44.5]}
8... O-O-O {[%clk 0:02:57.7]} 9. Qc1 {[%clk 0:02:39.5]} 9... h6 {[%clk
0:02:49.6]} 10. Nd5 {[%clk 0:02:19.7]} 10... Qxe4 {[%clk 0:02:43]} 11. Bxf6
{[%clk 0:02:16.4]} 11... Rde8 {[%clk 0:01:25.9]} 12. Nc3 {[%clk 0:02:11.3]}
12... Bb4 {[%clk 0:01:21.8]} 13. O-O {[%clk 0:02:01.7]} 13... Bxc3 {[%clk
0:01:20.4]} 14. Bd3 {[%clk 0:01:52.1]} 14... Bxf6 {[%clk 0:00:34.7]} 15. Bxe4
{[%clk 0:01:49.2]} 15... Rxe4 {[%clk 0:00:35.6]} 16. Nd2 {[%clk 0:01:42.9]}
16... Re2 {[%clk 0:00:32.3]} 17. Nc4 {[%clk 0:01:29.5]} 17... Nd4 {[%clk
0:00:15.5]} 18. Ne3 {[%clk 0:01:24.4]} 18... Bg5 {[%clk 0:00:14.3]} 19. f4
{[%clk 0:01:18.4]} 19... Rxc2 {[%clk 0:00:04.2]} 20. Nxc2 {[%clk 0:01:11]} 20...
Ne2+ {[%clk 0:00:04.4]} 21. Kf2 {[%clk 0:01:09.8]} 21... Nxc1 {[%clk 0:00:04.5]}
22. fxg5 {[%clk 0:01:08.1]} 22... Nd3+ {[%clk 0:00:04.7]} 23. Kg3 {[%clk
0:01:07.5]} 23... Be6 {[%clk 0:00:04.7]} 24. gxh6 {[%clk 0:01:00.5]} 24... Rxh6
{[%clk 0:00:05.3]} 25. h3 {[%clk 0:00:52.4]} 25... Rg6+ {[%clk 0:00:05.2]} 26.
Kh2 {[%clk 0:00:52.3]} 26... Nxb2 {[%clk 0:00:05.8]} 27. Nd4 {[%clk 0:00:48.2]}
27... Bd5 {[%clk 0:00:05.6]} 28. Rf2 {[%clk 0:00:46.5]} 28... Nd3 {[%clk
0:00:05.5]} 29. Rd2 {[%clk 0:00:44.9]} 29... Nf4 {[%clk 0:00:05.7]} 30. Nf3
{[%clk 0:00:42]} 30... c6 {[%clk 0:00:04.4]} 31. Re1 {[%clk 0:00:38]} 31... Bxf3
{[%clk 0:00:03.9]} 32. gxf3 {[%clk 0:00:36.9]} 32... Rh6 {[%clk 0:00:04.2]} 33.
Kg3 {[%clk 0:00:35.3]} 33... g5 {[%clk 0:00:04]} 34. Rh1 {[%clk 0:00:33.3]}
34... Re6 {[%clk 0:00:02.2]} 35. h4 {[%clk 0:00:31.3]} 35... f6 {[%clk
0:00:02.7]} 36. hxg5 {[%clk 0:00:31.1]} 36... fxg5 {[%clk 0:00:02.9]} 37. Rh8+
{[%clk 0:00:31.3]} 37... Kc7 {[%clk 0:00:03.1]} 38. Rh7+ {[%clk 0:00:30.9]}
38... Kb6 {[%clk 0:00:03.3]} 39. Kg4 {[%clk 0:00:30.9]} 39... Re5 {[%clk
0:00:03.5]} 40. Rdd7 {[%clk 0:00:29.5]} 40... Kc5 {[%clk 0:00:03.2]} 41. Rxb7
{[%clk 0:00:28.9]} 41... a5 {[%clk 0:00:04]} 42. Rhe7 {[%clk 0:00:22]} 42... Rd5
{[%clk 0:00:04]} 43. Ra7 {[%clk 0:00:19.4]} 43... Kc4 {[%clk 0:00:04]} 44. Rec7
{[%clk 0:00:17.5]} 44... Kb5 {[%clk 0:00:02.6]} 45. Rcb7+ {[%clk 0:00:16]} 45...
Kc4 {[%clk 0:00:02.9]} 46. a4 {[%clk 0:00:15.6]} 46... c5 {[%clk 0:00:02.7]} 47.
Rxa5 {[%clk 0:00:14.5]} 47... Rd1 {[%clk 0:00:03.6]} 48. Kxg5 {[%clk 0:00:13.3]}
48... Nd3 {[%clk 0:00:04.3]} 49. f4 {[%clk 0:00:09.3]} 49... Rg1+ {[%clk
0:00:05]} 50. Kf5 {[%clk 0:00:09.1]} 50... Rf1 {[%clk 0:00:05.9]} 51. Ke6 {[%clk
0:00:06.6]} 51... Rxf4 {[%clk 0:00:06.5]} 52. Ra8 {[%clk 0:00:05.4]} 52... Kc3
{[%clk 0:00:06.8]} 53. a5 {[%clk 0:00:04.1]} 53... Ra4 {[%clk 0:00:07.5]} 54. a6
{[%clk 0:00:04.1]} 54... c4 {[%clk 0:00:08.4]} 55. Kd6 {[%clk 0:00:01.9]} 55...
Kc2 {[%clk 0:00:07.5]} 56. a7 {[%clk 0:00:01.8]} 56... c3 {[%clk 0:00:08.1]} 57.
Rc8 {[%clk 0:00:01.3]} 57... Ra6+ {[%clk 0:00:06.8]} 0-1

[Event "Early-Titled-Tuesday-Blitz-January-23-2024"]
[Site "Chess.com"]
[Date "2024.01.23"]
[Round "6"]
[White "Maxfan2008"]
[Black "Druid24"]
[Result "0-1"]
[WhiteElo "2529"]
[BlackElo "2703"]
[TimeControl "180+1"]
[EndTime "9:07:21 PST"]
[Termination "Druid24 won by checkmate"]

1. d4 {[%clk 0:02:56.2]} 1... Nf6 {[%clk 0:02:59.8]} 2. c4 {[%clk 0:02:55.7]}
2... c5 {[%clk 0:03:00.1]} 3. d5 {[%clk 0:02:55.3]} 3... b5 {[%clk 0:03:00.3]}
4. cxb5 {[%clk 0:02:56.2]} 4... a6 {[%clk 0:03:00.4]} 5. bxa6 {[%clk 0:02:55.6]}
5... g6 {[%clk 0:03:00.1]} 6. Nc3 {[%clk 0:02:54.6]} 6... Bg7 {[%clk 0:03:00.6]}
7. g3 {[%clk 0:02:54.2]} 7... O-O {[%clk 0:02:56.1]} 8. Bg2 {[%clk 0:02:54.1]}
8... d6 {[%clk 0:02:56.8]} 9. Nf3 {[%clk 0:02:52.2]} 9... Nxa6 {[%clk
0:02:48.3]} 10. O-O {[%clk 0:02:51.2]} 10... Qa5 {[%clk 0:02:44.7]} 11. Ne1
{[%clk 0:02:48.2]} 11... Bd7 {[%clk 0:02:23.3]} 12. Nc2 {[%clk 0:02:47.4]} 12...
Rfb8 {[%clk 0:02:23.3]} 13. Ne3 {[%clk 0:02:46.3]} 13... Nc7 {[%clk 0:02:14]}
14. Qc2 {[%clk 0:02:40.9]} 14... Nb5 {[%clk 0:02:12.4]} 15. Nxb5 {[%clk
0:02:23.5]} 15... Bxb5 {[%clk 0:02:12.1]} 16. Bd2 {[%clk 0:02:14.7]} 16... Qa6
{[%clk 0:02:11.7]} 17. Bc3 {[%clk 0:02:09]} 17... Bxe2 {[%clk 0:02:11.3]} 18.
Rfe1 {[%clk 0:02:09]} 18... Bd3 {[%clk 0:02:11.3]} 19. Qd2 {[%clk 0:02:03.3]}
19... Ne4 {[%clk 0:02:11.3]} 20. Bxe4 {[%clk 0:02:01.7]} 20... Bxe4 {[%clk
0:02:12.2]} 21. Bxg7 {[%clk 0:01:58.9]} 21... Kxg7 {[%clk 0:02:13.1]} 22. Ng4
{[%clk 0:01:58.1]} 22... Qd3 {[%clk 0:01:59.3]} 23. Qh6+ {[%clk 0:01:45.5]}
23... Kg8 {[%clk 0:01:55.8]} 24. Re3 {[%clk 0:01:40.1]} 24... Qxd5 {[%clk
0:01:52.5]} 25. Rae1 {[%clk 0:01:28.8]} 25... f5 {[%clk 0:01:48]} 26. Qh4 {[%clk
0:01:01.7]} 26... fxg4 {[%clk 0:00:51]} 27. Rxe4 {[%clk 0:01:00.5]} 27... e5
{[%clk 0:00:51.6]} 28. Rxg4 {[%clk 0:00:48.1]} 28... Rxb2 {[%clk 0:00:49.6]} 29.
Qf6 {[%clk 0:00:37.6]} 29... Qf7 {[%clk 0:00:49.3]} 30. Qxf7+ {[%clk 0:00:30]}
30... Kxf7 {[%clk 0:00:50.2]} 31. a4 {[%clk 0:00:30.5]} 31... Rb4 {[%clk
0:00:49.3]} 32. f4 {[%clk 0:00:24]} 32... Raxa4 {[%clk 0:00:46.8]} 33. Rd1
{[%clk 0:00:22.9]} 33... Rd4 {[%clk 0:00:45.7]} 34. Rf1 {[%clk 0:00:21.8]} 34...
exf4 {[%clk 0:00:41.6]} 35. gxf4 {[%clk 0:00:21.7]} 35... Kf6 {[%clk 0:00:41.8]}
36. Rh4 {[%clk 0:00:19.6]} 36... h5 {[%clk 0:00:41.2]} 37. Kg2 {[%clk 0:00:19]}
37... Kf5 {[%clk 0:00:40]} 38. Rh3 {[%clk 0:00:18]} 38... Rxf4 {[%clk
0:00:39.5]} 39. Rd1 {[%clk 0:00:18.6]} 39... Rad4 {[%clk 0:00:39.7]} 40. Re1
{[%clk 0:00:18.6]} 40... Rd2+ {[%clk 0:00:39.7]} 41. Kg1 {[%clk 0:00:18.7]}
41... d5 {[%clk 0:00:39.5]} 42. Rhe3 {[%clk 0:00:18.6]} 42... Re4 {[%clk
0:00:33.8]} 43. Rf1+ {[%clk 0:00:18.7]} 43... Ke5 {[%clk 0:00:34.1]} 44. Ra3
{[%clk 0:00:16]} 44... c4 {[%clk 0:00:34]} 45. Ra8 {[%clk 0:00:15.2]} 45... Rg4+
{[%clk 0:00:32.7]} 46. Kh1 {[%clk 0:00:15.2]} 46... Rgg2 {[%clk 0:00:33.6]} 47.
Re1+ {[%clk 0:00:11.8]} 47... Kd4 {[%clk 0:00:34]} 48. Rg8 {[%clk 0:00:10.9]}
48... Rxh2+ {[%clk 0:00:34.2]} 49. Kg1 {[%clk 0:00:11]} 49... Rdg2+ {[%clk
0:00:35.1]} 50. Kf1 {[%clk 0:00:11.4]} 50... Rh1+ {[%clk 0:00:36]} 51. Kxg2
{[%clk 0:00:11.7]} 51... Rxe1 {[%clk 0:00:36.9]} 52. Rxg6 {[%clk 0:00:12.5]}
52... c3 {[%clk 0:00:37.1]} 53. Rc6 {[%clk 0:00:01.7]} 53... Kd3 {[%clk
0:00:34.8]} 54. Kf3 {[%clk 0:00:02.1]} 54... c2 {[%clk 0:00:33.9]} 55. Rc5
{[%clk 0:00:02.7]} 55... d4 {[%clk 0:00:33.7]} 56. Rd5 {[%clk 0:00:03.6]} 56...
h4 {[%clk 0:00:33.9]} 57. Rc5 {[%clk 0:00:03.6]} 57... h3 {[%clk 0:00:34.1]} 58.
Kf4 {[%clk 0:00:03]} 58... h2 {[%clk 0:00:34.1]} 59. Rc3+ {[%clk 0:00:01.6]}
59... Kd2 {[%clk 0:00:32.2]} 60. Kf5 {[%clk 0:00:02.5]} 60... dxc3 {[%clk
0:00:31.8]} 61. Kf6 {[%clk 0:00:03.4]} 61... h1=Q {[%clk 0:00:31.7]} 62. Kf7
{[%clk 0:00:04.3]} 62... c1=Q {[%clk 0:00:31.7]} 63. Kf8 {[%clk 0:00:05.2]}
63... c2 {[%clk 0:00:31.9]} 64. Kg8 {[%clk 0:00:06.1]} 64... Qd1 {[%clk
0:00:32.8]} 65. Kf8 {[%clk 0:00:07]} 65... c1=Q {[%clk 0:00:33.1]} 66. Kg8
{[%clk 0:00:07.9]} 66... Rg1+ {[%clk 0:00:32]} 67. Kf8 {[%clk 0:00:08.8]} 67...
Ke1 {[%clk 0:00:30.4]} 68. Ke8 {[%clk 0:00:09.7]} 68... Kd2 {[%clk 0:00:30.3]}
69. Kf8 {[%clk 0:00:10.6]} 69... Qe1 {[%clk 0:00:29.5]} 70. Kf7 {[%clk
0:00:10.5]} 70... Qe2 {[%clk 0:00:29.8]} 71. Kf8 {[%clk 0:00:11.4]} 71... Qce1
{[%clk 0:00:30]} 72. Kf7 {[%clk 0:00:12.3]} 72... Kd1 {[%clk 0:00:30.7]} 73. Kf8
{[%clk 0:00:13.2]} 73... Q2f1# {[%clk 0:00:31.6]} 0-1

[Event "Early-Titled-Tuesday-Blitz-January-23-2024"]
[Site "Chess.com"]
[Date "2024.01.23"]
[Round "6"]
[White "Mops_2004"]
[Black "mishanick"]
[Result "1-0"]
[WhiteElo "2855"]
[BlackElo "3051"]
[TimeControl "180+1"]
[EndTime "9:07:26 PST"]
[Termination "Mops_2004 won by resignation"]

1. Nf3 {[%clk 0:03:00.9]} 1... d5 {[%clk 0:03:00.1]} 2. g3 {[%clk 0:03:00.4]}
2... g6 {[%clk 0:03:00.5]} 3. Bg2 {[%clk 0:03:00.2]} 3... Bg7 {[%clk 0:03:01.2]}
4. d4 {[%clk 0:03:00.3]} 4... c6 {[%clk 0:03:01.5]} 5. O-O {[%clk 0:02:59.4]}
5... Nf6 {[%clk 0:03:02.1]} 6. b3 {[%clk 0:02:59.6]} 6... O-O {[%clk 0:03:01.8]}
7. Bb2 {[%clk 0:02:59.2]} 7... a5 {[%clk 0:03:02.2]} 8. c4 {[%clk 0:02:58.7]}
8... a4 {[%clk 0:03:02]} 9. e3 {[%clk 0:02:53.4]} 9... Qa5 {[%clk 0:03:00.4]}
10. Bc3 {[%clk 0:02:50.3]} 10... Qa6 {[%clk 0:03:00.1]} 11. Nbd2 {[%clk
0:02:50.5]} 11... Bf5 {[%clk 0:02:58.7]} 12. Qe2 {[%clk 0:02:49.5]} 12... Nbd7
{[%clk 0:02:58.2]} 13. Rfc1 {[%clk 0:02:46.3]} 13... Rfc8 {[%clk 0:02:49.8]} 14.
Bf1 {[%clk 0:02:42.9]} 14... Qb6 {[%clk 0:02:34.7]} 15. b4 {[%clk 0:02:41.3]}
15... Qd8 {[%clk 0:02:34.9]} 16. Nh4 {[%clk 0:02:33.6]} 16... Be6 {[%clk
0:02:30.9]} 17. c5 {[%clk 0:02:33.8]} 17... Ne4 {[%clk 0:02:29]} 18. Nxe4 {[%clk
0:02:21]} 18... dxe4 {[%clk 0:02:29.9]} 19. Ng2 {[%clk 0:02:20.4]} 19... Nf6
{[%clk 0:02:29.7]} 20. Nf4 {[%clk 0:02:20]} 20... Bg4 {[%clk 0:02:30.2]} 21. Qc2
{[%clk 0:02:18.5]} 21... g5 {[%clk 0:02:30]} 22. Ne2 {[%clk 0:02:13.9]} 22...
Qd7 {[%clk 0:02:26.5]} 23. a3 {[%clk 0:02:07.4]} 23... Bf3 {[%clk 0:02:24.1]}
24. Bb2 {[%clk 0:02:00.1]} 24... Nd5 {[%clk 0:01:54.7]} 25. Nc3 {[%clk
0:01:57.7]} 25... Nxc3 {[%clk 0:01:54.7]} 26. Bxc3 {[%clk 0:01:58.1]} 26... Qf5
{[%clk 0:01:52.3]} 27. b5 {[%clk 0:01:41.5]} 27... h5 {[%clk 0:01:51.4]} 28.
bxc6 {[%clk 0:01:38.9]} 28... bxc6 {[%clk 0:01:52.3]} 29. Bg2 {[%clk 0:01:30.9]}
29... g4 {[%clk 0:01:50.1]} 30. Bf1 {[%clk 0:01:21.7]} 30... h4 {[%clk
0:01:48.5]} 31. Rab1 {[%clk 0:01:20]} 31... Bf6 {[%clk 0:01:43.2]} 32. Rb4
{[%clk 0:01:08.7]} 32... Kg7 {[%clk 0:01:33.5]} 33. Rxa4 {[%clk 0:01:06.1]}
33... hxg3 {[%clk 0:01:32.1]} 34. fxg3 {[%clk 0:01:05.7]} 34... Qg5 {[%clk
0:01:32.5]} 35. Re1 {[%clk 0:00:55.7]} 35... Rxa4 {[%clk 0:01:29.7]} 36. Qxa4
{[%clk 0:00:54.8]} 36... e6 {[%clk 0:01:20.3]} 37. Qc2 {[%clk 0:00:53.8]} 37...
Ra8 {[%clk 0:01:18.2]} 38. a4 {[%clk 0:00:54]} 38... Kg6 {[%clk 0:01:16.2]} 39.
a5 {[%clk 0:00:52.8]} 39... Bd8 {[%clk 0:01:16.9]} 40. a6 {[%clk 0:00:52.7]}
40... Bc7 {[%clk 0:01:17.6]} 41. Qd2 {[%clk 0:00:47.7]} 41... Qh6 {[%clk
0:01:10.3]} 42. Qf2 {[%clk 0:00:40.9]} 42... Qf8 {[%clk 0:00:54.5]} 43. Rb1
{[%clk 0:00:40.1]} 43... Ra7 {[%clk 0:00:22.3]} 44. Rb7 {[%clk 0:00:37.1]} 44...
Rxb7 {[%clk 0:00:22.8]} 45. axb7 {[%clk 0:00:37.8]} 45... Qb8 {[%clk 0:00:23.3]}
46. Ba6 {[%clk 0:00:31.4]} 46... Qa7 {[%clk 0:00:20.7]} 47. Qa2 {[%clk 0:00:23]}
47... Qb8 {[%clk 0:00:20.1]} 48. Be1 {[%clk 0:00:20.1]} 48... Qa7 {[%clk
0:00:20.1]} 49. Qa4 {[%clk 0:00:17.8]} 49... Be2 {[%clk 0:00:12.6]} 50. Bb5
{[%clk 0:00:17.5]} 50... Qxb7 {[%clk 0:00:02.4]} 51. Bxe2 {[%clk 0:00:17.3]}
51... Bd8 {[%clk 0:00:02.2]} 52. Qb4 {[%clk 0:00:16.1]} 52... Qa7 {[%clk
0:00:01.8]} 53. Bxg4 {[%clk 0:00:15.9]} 53... Bg5 {[%clk 0:00:02.5]} 54. Qd2
{[%clk 0:00:14.5]} 54... Qa3 {[%clk 0:00:02.3]} 55. Bf2 {[%clk 0:00:14.7]} 55...
Qb3 {[%clk 0:00:02.7]} 56. Bd1 {[%clk 0:00:14.2]} 56... Qc4 {[%clk 0:00:02.5]}
57. h4 {[%clk 0:00:14.3]} 57... Bh6 {[%clk 0:00:02.6]} 58. Kg2 {[%clk
0:00:14.8]} 58... f5 {[%clk 0:00:02.8]} 59. Be2 {[%clk 0:00:14.5]} 59... Qb3
{[%clk 0:00:02.9]} 60. g4 {[%clk 0:00:12.7]} 60... Bg7 {[%clk 0:00:02.1]} 61. g5
{[%clk 0:00:12.6]} 61... Bf8 {[%clk 0:00:02.2]} 62. Bg3 {[%clk 0:00:12.8]} 62...
Qd5 {[%clk 0:00:02.5]} 63. Bf4 {[%clk 0:00:13]} 63... Bg7 {[%clk 0:00:02.8]} 64.
h5+ {[%clk 0:00:13.4]} 64... Kh7 {[%clk 0:00:03.5]} 65. g6+ {[%clk 0:00:13.8]}
65... Kg8 {[%clk 0:00:03.7]} 66. h6 {[%clk 0:00:14.5]} 66... Bf6 {[%clk
0:00:04.2]} 67. Qb2 {[%clk 0:00:13.3]} 67... Qd8 {[%clk 0:00:03.7]} 68. Qb8
{[%clk 0:00:13.1]} 1-0

[Event "Early-Titled-Tuesday-Blitz-January-23-2024"]
[Site "Chess.com"]
[Date "2024.01.23"]
[Round "6"]
[White "KNVB"]
[Black "Sam_ChessMood"]
[Result "0-1"]
[WhiteElo "2753"]
[BlackElo "2916"]
[TimeControl "180+1"]
[EndTime "9:07:33 PST"]
[Termination "Sam_ChessMood won by resignation"]

1. d4 {[%clk 0:03:00.9]} 1... Nf6 {[%clk 0:02:59.7]} 2. Bf4 {[%clk 0:03:00.7]}
2... d5 {[%clk 0:02:59.1]} 3. e3 {[%clk 0:03:00.1]} 3... c5 {[%clk 0:02:59.3]}
4. c3 {[%clk 0:03:00.5]} 4... Qb6 {[%clk 0:02:58.3]} 5. Qb3 {[%clk 0:03:00.5]}
5... c4 {[%clk 0:02:52.2]} 6. Qxb6 {[%clk 0:03:00.4]} 6... axb6 {[%clk 0:02:52]}
7. Bxb8 {[%clk 0:03:00.8]} 7... Rxb8 {[%clk 0:02:51.8]} 8. Nd2 {[%clk
0:03:01.6]} 8... b5 {[%clk 0:02:47.3]} 9. a3 {[%clk 0:03:01.5]} 9... g5 {[%clk
0:02:33.1]} 10. Ngf3 {[%clk 0:02:18.1]} 10... h6 {[%clk 0:02:32.7]} 11. Be2
{[%clk 0:02:13]} 11... Bg7 {[%clk 0:02:31.9]} 12. O-O {[%clk 0:02:09.1]} 12...
Bf5 {[%clk 0:02:31]} 13. Bd1 {[%clk 0:02:02.3]} 13... O-O {[%clk 0:02:17]} 14.
Ne1 {[%clk 0:01:42.4]} 14... Ra8 {[%clk 0:02:13.3]} 15. Bc2 {[%clk 0:01:40.4]}
15... Bd7 {[%clk 0:02:08.5]} 16. Rd1 {[%clk 0:01:02.6]} 16... Bc6 {[%clk
0:02:06]} 17. h3 {[%clk 0:00:57.4]} 17... Nd7 {[%clk 0:02:01.3]} 18. f4 {[%clk
0:00:57]} 18... e6 {[%clk 0:01:48.2]} 19. fxg5 {[%clk 0:00:28.9]} 19... hxg5
{[%clk 0:01:47.9]} 20. e4 {[%clk 0:00:29.7]} 20... g4 {[%clk 0:01:02.3]} 21.
hxg4 {[%clk 0:00:08.8]} 21... Nf6 {[%clk 0:01:02.4]} 22. g5 {[%clk 0:00:01.7]}
22... Ng4 {[%clk 0:01:02.3]} 23. Rf3 {[%clk 0:00:02]} 23... e5 {[%clk
0:00:52.5]} 24. exd5 {[%clk 0:00:01.9]} 24... Bxd5 {[%clk 0:00:48.2]} 25. Rg3
{[%clk 0:00:02.6]} 25... Be6 {[%clk 0:00:48.5]} 26. Nf1 {[%clk 0:00:02.4]} 26...
exd4 {[%clk 0:00:47.1]} 27. cxd4 {[%clk 0:00:02.8]} 27... Rfd8 {[%clk
0:00:32.6]} 28. Nf3 {[%clk 0:00:03.1]} 28... b4 {[%clk 0:00:28.1]} 29. axb4
{[%clk 0:00:03.4]} 29... Ra2 {[%clk 0:00:28.2]} 30. Rb1 {[%clk 0:00:04]} 30...
Rxd4 {[%clk 0:00:23.3]} 31. Nxd4 {[%clk 0:00:04.9]} 31... Bxd4+ {[%clk
0:00:23.5]} 32. Kh1 {[%clk 0:00:04.7]} 32... Bxb2 {[%clk 0:00:17.6]} 33. Ne3
{[%clk 0:00:02.5]} 33... Ne5 {[%clk 0:00:04.4]} 34. g6 {[%clk 0:00:02.4]} 34...
Bd4 {[%clk 0:00:02.3]} 35. gxf7+ {[%clk 0:00:02.2]} 35... Kxf7 {[%clk
0:00:02.9]} 36. Bf5 {[%clk 0:00:01.7]} 36... c3 {[%clk 0:00:01.8]} 37. Bxe6+
{[%clk 0:00:02]} 37... Kxe6 {[%clk 0:00:02.4]} 38. Rd1 {[%clk 0:00:01.8]} 38...
Rd2 {[%clk 0:00:02.5]} 39. Re1 {[%clk 0:00:01.8]} 39... Kd7 {[%clk 0:00:02.1]}
40. Nf5 {[%clk 0:00:02]} 40... Nd3 {[%clk 0:00:01.9]} 41. Nxd4 {[%clk
0:00:02.1]} 41... Nxe1 {[%clk 0:00:01.9]} 42. Rxc3 {[%clk 0:00:03]} 42... Rxd4
{[%clk 0:00:01.7]} 43. Kg1 {[%clk 0:00:02.1]} 43... Rd1 {[%clk 0:00:01.9]} 44.
Kf2 {[%clk 0:00:02.1]} 44... Nd3+ {[%clk 0:00:01.7]} 45. Ke2 {[%clk 0:00:02.5]}
45... Nb2 {[%clk 0:00:02.1]} 46. Rb3 {[%clk 0:00:01.7]} 46... Rb1 {[%clk
0:00:02.5]} 47. g4 {[%clk 0:00:01.5]} 47... Na4 {[%clk 0:00:02.4]} 48. Rxb1
{[%clk 0:00:01.4]} 48... Nc3+ {[%clk 0:00:02.7]} 49. Kd3 {[%clk 0:00:02.3]}
49... Nxb1 {[%clk 0:00:03.1]} 50. Kc4 {[%clk 0:00:01.5]} 50... Nd2+ {[%clk
0:00:03.5]} 51. Kc5 {[%clk 0:00:01.4]} 51... Kc7 {[%clk 0:00:02.8]} 52. Kd4
{[%clk 0:00:01.2]} 52... Nf3+ {[%clk 0:00:03.1]} 53. Ke4 {[%clk 0:00:01.6]}
53... Nh4 {[%clk 0:00:03.3]} 54. Kf4 {[%clk 0:00:01.6]} 54... Kc6 {[%clk
0:00:03.5]} 55. g5 {[%clk 0:00:02.2]} 55... Kb5 {[%clk 0:00:02.4]} 56. Kg4
{[%clk 0:00:02.8]} 56... Ng6 {[%clk 0:00:02.6]} 57. Kf5 {[%clk 0:00:03.6]} 57...
Nh4+ {[%clk 0:00:02.2]} 58. Kg4 {[%clk 0:00:04.1]} 58... Ng6 {[%clk 0:00:02.7]}
59. Kf5 {[%clk 0:00:04.3]} 59... Nf8 {[%clk 0:00:02.6]} 60. Ke5 {[%clk
0:00:02.7]} 60... Kxb4 {[%clk 0:00:02.4]} 61. Kd6 {[%clk 0:00:02.8]} 61... b5
{[%clk 0:00:02.7]} 62. Ke7 {[%clk 0:00:03.1]} 62... Ng6+ {[%clk 0:00:02.9]} 63.
Kf6 {[%clk 0:00:03.4]} 63... Nh4 {[%clk 0:00:03.2]} 64. Ke5 {[%clk 0:00:03.8]}
64... Kc4 {[%clk 0:00:03.4]} 65. Kf4 {[%clk 0:00:04.2]} 65... b4 {[%clk
0:00:03.9]} 66. Kg4 {[%clk 0:00:04.3]} 66... Ng6 {[%clk 0:00:04.3]} 67. Kf5
{[%clk 0:00:03.8]} 67... Nf8 {[%clk 0:00:04.4]} 68. Ke4 {[%clk 0:00:03.4]} 68...
b3 {[%clk 0:00:04.4]} 69. g6 {[%clk 0:00:03.6]} 69... Nxg6 {[%clk 0:00:04.3]}
0-1